[Event "Titled Tuesday Blitz August 1 Late 2023"]
[White "Manukyan, Sargis A."]
[Black "ChessSG1"]
[WhiteFideId "13303970"]
[WhiteElo "2645"]
[BlackElo "2469"]
[Result "1-0"]
[Round "4"]
[TimeControl "180+1"]
[Date "2023.08.01"]
[WhiteClock "0:01:56"]
[BlackClock "0:00:00"]
[Board "90"]

1. d4 {[%clk 0:03:00]}  Nf6 {[%clk 0:02:59]} 2. c4 {[%clk 0:03:01]}  e6 {[%clk 0:03:00]} 3. Nc3 {[%clk 0:03:02]}  d5 {[%clk 0:03:00]} 4. Bg5 {[%clk 0:03:01]}  dxc4 {[%clk 0:02:59]} 5. e3 {[%clk 0:03:01]}  a6 {[%clk 0:02:56]} 6. Bxc4 {[%clk 0:03:01]}  c5 {[%clk 0:02:55]} 7. Nf3 {[%clk 0:03:00]}  b5 {[%clk 0:02:54]} 8. Be2 {[%clk 0:02:59]}  Bb7 {[%clk 0:02:52]} 9. O-O {[%clk 0:02:59]}  Nbd7 {[%clk 0:02:52]} 10. dxc5 {[%clk 0:02:59]}  Bxc5 {[%clk 0:02:50]} 11. a3 {[%clk 0:03:00]}  O-O {[%clk 0:02:48]} 12. b4 {[%clk 0:03:01]}  Be7 {[%clk 0:02:47]} 13. Qb3 {[%clk 0:03:00]}  h6 {[%clk 0:02:46]} 14. Bh4 {[%clk 0:02:57]}  Rc8 {[%clk 0:02:00]} 15. Rac1 {[%clk 0:02:56]}  Qb6 {[%clk 0:01:47]} 16. Rfd1 {[%clk 0:02:54]}  Rfd8 {[%clk 0:01:35]} 17. a4 {[%clk 0:02:49]}  bxa4 {[%clk 0:01:34]} 18. Nxa4 {[%clk 0:02:46]}  Qxb4 {[%clk 0:01:31]} 19. Qxb4 {[%clk 0:02:43]}  Bxb4 {[%clk 0:01:30]} 20. Nd4 {[%clk 0:02:16]}  g5 {[%clk 0:01:28]} 21. Bg3 {[%clk 0:02:16]}  Rxc1 {[%clk 0:01:27]} 22. Rxc1 {[%clk 0:02:16]}  Ne4 {[%clk 0:01:23]} 23. Bf3 {[%clk 0:02:05]}  Ndc5 {[%clk 0:01:11]} 24. Nxc5 {[%clk 0:02:02]}  Nxc5 {[%clk 0:01:05]} 25. Bxb7 {[%clk 0:02:02]}  Nxb7 {[%clk 0:01:06]} 26. Nc6 {[%clk 0:02:02]}  Ba3 {[%clk 0:00:55]} 27. Nxd8 {[%clk 0:01:59]}  Bxc1 {[%clk 0:00:32]} 28. Nxb7 {[%clk 0:01:59]}  Bd2 {[%clk 0:00:33]} 29. Kf1 {[%clk 0:01:58]}  a5 {[%clk 0:00:33]} 30. Nc5 {[%clk 0:01:59]}  Bb4 {[%clk 0:00:32]} 31. Na4 {[%clk 0:02:00]}  Kf8 {[%clk 0:00:32]} 32. Ke2 {[%clk 0:02:01]}  Ke8 {[%clk 0:00:32]} 33. Kd3 {[%clk 0:02:02]}  Kd7 {[%clk 0:00:33]} 34. Kc4 {[%clk 0:02:02]}  Kc6 {[%clk 0:00:34]} 35. Be5 {[%clk 0:02:02]}  Be1 {[%clk 0:00:32]} 36. f3 {[%clk 0:02:02]}  f5 {[%clk 0:00:29]} 37. Bc3 {[%clk 0:02:01]}  Bf2 {[%clk 0:00:29]} 38. e4 {[%clk 0:02:01]}  g4 {[%clk 0:00:29]} 39. Bxa5 {[%clk 0:02:01]}  h5 {[%clk 0:00:24]} 40. Bc3 {[%clk 0:01:59]}  h4 {[%clk 0:00:24]} 41. h3 {[%clk 0:01:57]}  gxh3 {[%clk 0:00:21]} 42. gxh3 {[%clk 0:01:57]}  fxe4 {[%clk 0:00:22]} 43. fxe4 {[%clk 0:01:58]}  Bg3 {[%clk 0:00:22]} 44. Bd4 {[%clk 0:01:58]}  Kd6 {[%clk 0:00:18]} 45. Nc3 {[%clk 0:01:58]}  e5 {[%clk 0:00:15]} 46. Be3 {[%clk 0:01:58]}  Ke6 {[%clk 0:00:16]} 47. Ne2 {[%clk 0:01:57]}  Bh2 {[%clk 0:00:12]} 48. Bg1 {[%clk 0:01:55]}  Bg3 {[%clk 0:00:05]} 49. Nxg3 {[%clk 0:01:53]}  hxg3 {[%clk 0:00:06]} 50. Kd3 {[%clk 0:01:54]}  Kf6 {[%clk 0:00:06]} 51. Ke3 {[%clk 0:01:55]}  Kg5 {[%clk 0:00:07]} 52. Kf3 {[%clk 0:01:56]}  Kh4 {[%clk 0:00:00]} 53. Kg2 {[%clk 0:01:56]} 1-0


[Site "https://www.chess.com"]

[Event "Titled Tuesday Blitz August 1 Late 2023"]
[White "Sun, Rick"]
[Black "Arnold, Ken"]
[WhiteFideId "30909481"]
[BlackFideId "2056836"]
[WhiteElo "2627"]
[BlackElo "2432"]
[Result "1-0"]
[Round "4"]
[TimeControl "180+1"]
[Date "2023.08.01"]
[WhiteClock "0:00:04"]
[BlackClock "0:00:00"]
[Board "91"]

1. e4 {[%clk 0:03:00]}  c6 {[%clk 0:02:52]} 2. d4 {[%clk 0:03:00]}  d5 {[%clk 0:02:50]} 3. f3 {[%clk 0:03:00]}  dxe4 {[%clk 0:02:49]} 4. fxe4 {[%clk 0:03:01]}  e5 {[%clk 0:02:49]} 5. Nf3 {[%clk 0:03:02]}  Bg4 {[%clk 0:02:49]} 6. Bc4 {[%clk 0:03:02]}  Nd7 {[%clk 0:02:49]} 7. O-O {[%clk 0:03:02]}  Ngf6 {[%clk 0:02:47]} 8. Qe1 {[%clk 0:03:00]}  Bd6 {[%clk 0:02:47]} 9. Qg3 {[%clk 0:02:46]}  Qe7 {[%clk 0:02:41]} 10. Ng5 {[%clk 0:01:55]}  O-O {[%clk 0:02:34]} 11. Qh4 {[%clk 0:00:39]}  Bh5 {[%clk 0:02:28]} 12. c3 {[%clk 0:00:31]}  Bg6 {[%clk 0:02:23]} 13. Nd2 {[%clk 0:00:30]}  b5 {[%clk 0:01:57]} 14. Bb3 {[%clk 0:00:29]}  a5 {[%clk 0:01:55]} 15. a4 {[%clk 0:00:27]}  Bc7 {[%clk 0:01:09]} 16. Kh1 {[%clk 0:00:24]}  Rae8 {[%clk 0:00:55]} 17. axb5 {[%clk 0:00:19]}  cxb5 {[%clk 0:00:54]} 18. d5 {[%clk 0:00:20]}  a4 {[%clk 0:00:52]} 19. Bc2 {[%clk 0:00:20]}  Bd6 {[%clk 0:00:49]} 20. b3 {[%clk 0:00:13]}  axb3 {[%clk 0:00:44]} 21. Bxb3 {[%clk 0:00:14]}  Nc5 {[%clk 0:00:44]} 22. Bc2 {[%clk 0:00:14]}  Ra8 {[%clk 0:00:42]} 23. Rb1 {[%clk 0:00:14]}  Na4 {[%clk 0:00:38]} 24. Qh3 {[%clk 0:00:10]}  Rac8 {[%clk 0:00:33]} 25. Rb3 {[%clk 0:00:07]}  Nc5 {[%clk 0:00:24]} 26. Rxb5 {[%clk 0:00:07]}  h6 {[%clk 0:00:22]} 27. Ngf3 {[%clk 0:00:06]}  Ncxe4 {[%clk 0:00:22]} 28. Nxe4 {[%clk 0:00:04]}  Nxe4 {[%clk 0:00:21]} 29. Bxe4 {[%clk 0:00:02]}  Bxe4 {[%clk 0:00:21]} 30. Re1 {[%clk 0:00:02]}  Bxf3 {[%clk 0:00:20]} 31. Qxf3 {[%clk 0:00:02]}  Qc7 {[%clk 0:00:17]} 32. Rb3 {[%clk 0:00:02]}  Qc4 {[%clk 0:00:16]} 33. Qd1 {[%clk 0:00:02]}  e4 {[%clk 0:00:15]} 34. Rb6 {[%clk 0:00:02]}  Bc5 {[%clk 0:00:11]} 35. Rc6 {[%clk 0:00:03]}  Rxc6 {[%clk 0:00:10]} 36. dxc6 {[%clk 0:00:03]}  Qe6 {[%clk 0:00:10]} 37. Qe2 {[%clk 0:00:03]}  Qxc6 {[%clk 0:00:09]} 38. Qxe4 {[%clk 0:00:04]}  Qxe4 {[%clk 0:00:08]} 39. Rxe4 {[%clk 0:00:05]}  Rc8 {[%clk 0:00:08]} 40. g3 {[%clk 0:00:04]}  f6 {[%clk 0:00:07]} 41. c4 {[%clk 0:00:05]}  Kf7 {[%clk 0:00:08]} 42. Kg2 {[%clk 0:00:05]}  f5 {[%clk 0:00:07]} 43. Re5 {[%clk 0:00:04]}  g6 {[%clk 0:00:04]} 44. Re2 {[%clk 0:00:04]}  Be7 {[%clk 0:00:02]} 45. Rc2 {[%clk 0:00:05]}  Bf6 {[%clk 0:00:02]} 46. h4 {[%clk 0:00:03]}  g5 {[%clk 0:00:02]} 47. h5 {[%clk 0:00:03]}  Ke6 {[%clk 0:00:02]} 48. Kf3 {[%clk 0:00:04]}  Ra8 {[%clk 0:00:02]} 49. c5 {[%clk 0:00:04]}  Kd7 {[%clk 0:00:02]} 50. Be3 {[%clk 0:00:03]}  Kc6 {[%clk 0:00:02]} 51. Ke2 {[%clk 0:00:03]}  Ra4 {[%clk 0:00:02]} 52. Bf2 {[%clk 0:00:04]}  Bd4 {[%clk 0:00:01]} 53. Be1 {[%clk 0:00:03]}  Bxc5 {[%clk 0:00:01]} 54. Bf2 {[%clk 0:00:03]}  Ra5 {[%clk 0:00:01]} 55. Be3 {[%clk 0:00:03]}  Rb5 {[%clk 0:00:01]} 56. Kf3 {[%clk 0:00:03]}  Kd5 {[%clk 0:00:02]} 57. Rd2+ {[%clk 0:00:03]}  Ke6 {[%clk 0:00:01]} 58. Bxc5 {[%clk 0:00:02]}  Rxc5 {[%clk 0:00:02]} 59. Rd8 {[%clk 0:00:03]}  Re5 {[%clk 0:00:02]} 60. Rh8 {[%clk 0:00:03]}  g4+ {[%clk 0:00:02]} 61. Kg2 {[%clk 0:00:03]}  f4 {[%clk 0:00:03]} 62. Rxh6+ {[%clk 0:00:03]}  Kd5 {[%clk 0:00:03]} 63. gxf4 {[%clk 0:00:03]}  Rf5 {[%clk 0:00:03]} 64. Kg3 {[%clk 0:00:03]}  Ke4 {[%clk 0:00:04]} 65. Re6+ {[%clk 0:00:04]}  Kd5 {[%clk 0:00:04]} 66. Re1 {[%clk 0:00:04]}  Rxh5 {[%clk 0:00:04]} 67. Kxg4 {[%clk 0:00:04]}  Rh1 {[%clk 0:00:00]} 68. Rxh1 {[%clk 0:00:04]} 1-0


[Site "https://www.chess.com"]

[Event "Titled Tuesday Blitz August 1 Late 2023"]
[White "NigelDwarf"]
[Black "Khater, Sherif"]
[BlackFideId "2034280"]
[WhiteElo "2508"]
[BlackElo "2599"]
[Result "1-0"]
[Round "4"]
[TimeControl "180+1"]
[Date "2023.08.01"]
[WhiteClock "0:01:12"]
[BlackClock "0:01:40"]
[Board "92"]

1. e4 {[%clk 0:03:00]}  e5 {[%clk 0:03:00]} 2. Nf3 {[%clk 0:03:00]}  Nf6 {[%clk 0:03:00]} 3. Nxe5 {[%clk 0:02:59]}  d6 {[%clk 0:03:00]} 4. Nf3 {[%clk 0:02:59]}  Nxe4 {[%clk 0:03:01]} 5. Bd3 {[%clk 0:02:59]}  Nc5 {[%clk 0:03:00]} 6. Be2 {[%clk 0:02:53]}  d5 {[%clk 0:02:58]} 7. O-O {[%clk 0:02:53]}  Be7 {[%clk 0:02:58]} 8. d4 {[%clk 0:02:50]}  Ne4 {[%clk 0:02:59]} 9. Nc3 {[%clk 0:02:50]}  Nxc3 {[%clk 0:02:59]} 10. bxc3 {[%clk 0:02:50]}  O-O {[%clk 0:02:59]} 11. Bd3 {[%clk 0:02:51]}  Nd7 {[%clk 0:02:57]} 12. Re1 {[%clk 0:02:45]}  Nf6 {[%clk 0:02:57]} 13. h3 {[%clk 0:02:45]}  Re8 {[%clk 0:02:55]} 14. Rb1 {[%clk 0:02:44]}  c6 {[%clk 0:02:54]} 15. Bf4 {[%clk 0:02:38]}  b5 {[%clk 0:02:46]} 16. Ne5 {[%clk 0:02:35]}  Bb7 {[%clk 0:02:45]} 17. Qf3 {[%clk 0:02:25]}  a6 {[%clk 0:02:37]} 18. Bg5 {[%clk 0:02:09]}  h6 {[%clk 0:02:33]} 19. Bh4 {[%clk 0:01:44]}  Rf8 {[%clk 0:02:22]} 20. Qf5 {[%clk 0:01:42]}  Bc8 {[%clk 0:02:17]} 21. Qf3 {[%clk 0:01:34]}  Bb7 {[%clk 0:02:02]} 22. Bxf6 {[%clk 0:01:16]}  Bxf6 {[%clk 0:02:01]} 23. Qf5 {[%clk 0:01:15]}  Re8 {[%clk 0:01:47]} 24. Qh7+ {[%clk 0:01:13]}  Kf8 {[%clk 0:01:40]} 25. Nd7+ {[%clk 0:01:12]} 1-0


[Site "https://www.chess.com"]

[Event "Titled Tuesday Blitz August 1 Late 2023"]
[White "Karwowski, Kacper"]
[Black "Nikolova, Adriana"]
[WhiteFideId "1126032"]
[BlackFideId "2908689"]
[WhiteElo "2557"]
[BlackElo "2426"]
[Result "1-0"]
[Round "4"]
[TimeControl "180+1"]
[Date "2023.08.01"]
[WhiteClock "0:00:24"]
[BlackClock "0:00:02"]
[Board "93"]

1. d4 {[%clk 0:03:00]}  d5 {[%clk 0:02:59]} 2. Nf3 {[%clk 0:02:58]}  Nf6 {[%clk 0:02:59]} 3. c4 {[%clk 0:02:58]}  c6 {[%clk 0:02:59]} 4. Nc3 {[%clk 0:02:58]}  dxc4 {[%clk 0:02:59]} 5. a4 {[%clk 0:02:57]}  Bf5 {[%clk 0:02:58]} 6. e3 {[%clk 0:02:56]}  e6 {[%clk 0:02:52]} 7. Bxc4 {[%clk 0:02:56]}  Bb4 {[%clk 0:02:53]} 8. O-O {[%clk 0:02:53]}  Nbd7 {[%clk 0:02:53]} 9. Qb3 {[%clk 0:02:48]}  Qe7 {[%clk 0:02:37]} 10. Rd1 {[%clk 0:02:45]}  Bg4 {[%clk 0:02:29]} 11. Be2 {[%clk 0:02:44]}  O-O {[%clk 0:02:28]} 12. h3 {[%clk 0:02:44]}  Bh5 {[%clk 0:02:28]} 13. Qc2 {[%clk 0:02:26]}  a5 {[%clk 0:02:26]} 14. e4 {[%clk 0:02:25]}  e5 {[%clk 0:02:26]} 15. Bg5 {[%clk 0:02:13]}  exd4 {[%clk 0:02:13]} 16. Nxd4 {[%clk 0:02:14]}  Bg6 {[%clk 0:02:02]} 17. f3 {[%clk 0:01:56]}  Rfe8 {[%clk 0:01:50]} 18. Bf1 {[%clk 0:01:39]}  h6 {[%clk 0:01:45]} 19. Be3 {[%clk 0:01:39]}  Nh5 {[%clk 0:01:35]} 20. Qf2 {[%clk 0:01:20]}  Bd6 {[%clk 0:01:33]} 21. Nce2 {[%clk 0:01:19]}  Qe5 {[%clk 0:01:27]} 22. f4 {[%clk 0:01:14]}  Qxe4 {[%clk 0:01:22]} 23. f5 {[%clk 0:00:55]}  Qe5 {[%clk 0:01:08]} 24. g4 {[%clk 0:00:51]}  Qxe3 {[%clk 0:00:43]} 25. Qxe3 {[%clk 0:00:50]}  Rxe3 {[%clk 0:00:44]} 26. fxg6 {[%clk 0:00:51]}  Nhf6 {[%clk 0:00:35]} 27. gxf7+ {[%clk 0:00:47]}  Kxf7 {[%clk 0:00:35]} 28. Nf5 {[%clk 0:00:48]}  Bc5 {[%clk 0:00:35]} 29. Nxe3 {[%clk 0:00:46]}  Bxe3+ {[%clk 0:00:36]} 30. Kh1 {[%clk 0:00:45]}  Ne5 {[%clk 0:00:33]} 31. Bg2 {[%clk 0:00:44]}  Nc4 {[%clk 0:00:32]} 32. b3 {[%clk 0:00:42]}  Nd2 {[%clk 0:00:29]} 33. Ra2 {[%clk 0:00:37]}  Nde4 {[%clk 0:00:27]} 34. Bxe4 {[%clk 0:00:32]}  Nxe4 {[%clk 0:00:28]} 35. Rf1+ {[%clk 0:00:32]}  Kg6 {[%clk 0:00:27]} 36. Kg2 {[%clk 0:00:33]}  Rd8 {[%clk 0:00:24]} 37. Ng3 {[%clk 0:00:32]}  Nd2 {[%clk 0:00:18]} 38. Rd1 {[%clk 0:00:30]}  Rd4 {[%clk 0:00:15]} 39. Nf5 {[%clk 0:00:30]}  Rd3 {[%clk 0:00:09]} 40. Nxe3 {[%clk 0:00:29]}  Rxe3 {[%clk 0:00:09]} 41. Raxd2 {[%clk 0:00:29]}  Rxb3 {[%clk 0:00:10]} 42. Rd6+ {[%clk 0:00:28]}  Kh7 {[%clk 0:00:09]} 43. Rd7 {[%clk 0:00:29]}  Rb2+ {[%clk 0:00:07]} 44. R1d2 {[%clk 0:00:29]}  Rb4 {[%clk 0:00:07]} 45. Re2 {[%clk 0:00:29]}  Rxa4 {[%clk 0:00:06]} 46. Ree7 {[%clk 0:00:29]}  Ra2+ {[%clk 0:00:06]} 47. Kg3 {[%clk 0:00:29]}  Ra3+ {[%clk 0:00:06]} 48. Kh4 {[%clk 0:00:29]}  Kg6 {[%clk 0:00:06]} 49. Rxg7+ {[%clk 0:00:27]}  Kf6 {[%clk 0:00:06]} 50. Rxb7 {[%clk 0:00:26]}  a4 {[%clk 0:00:05]} 51. Rgc7 {[%clk 0:00:26]}  Rc3 {[%clk 0:00:04]} 52. Rb6 {[%clk 0:00:26]}  Ke5 {[%clk 0:00:05]} 53. Rcxc6 {[%clk 0:00:26]}  Rf3 {[%clk 0:00:03]} 54. Rxh6 {[%clk 0:00:23]}  a3 {[%clk 0:00:03]} 55. Rh5+ {[%clk 0:00:23]}  Kd4 {[%clk 0:00:02]} 56. Ra5 {[%clk 0:00:24]}  Kc4 {[%clk 0:00:02]} 57. Rba6 {[%clk 0:00:24]}  Kb4 {[%clk 0:00:02]} 58. Rxa3 {[%clk 0:00:24]} 1-0


[Site "https://www.chess.com"]

[Event "Titled Tuesday Blitz August 1 Late 2023"]
[White "Womacka, Mathias"]
[Black "Doluhanova, Evgeniya"]
[WhiteFideId "4611390"]
[BlackFideId "14112035"]
[WhiteElo "2540"]
[BlackElo "2284"]
[Result "1-0"]
[Round "4"]
[TimeControl "180+1"]
[Date "2023.08.01"]
[WhiteClock "0:00:21"]
[BlackClock "0:00:01"]
[Board "95"]

1. e4 {[%clk 0:03:00]}  c5 {[%clk 0:02:58]} 2. Nf3 {[%clk 0:03:00]}  d6 {[%clk 0:02:58]} 3. d4 {[%clk 0:03:00]}  cxd4 {[%clk 0:02:58]} 4. Nxd4 {[%clk 0:03:01]}  Nf6 {[%clk 0:02:58]} 5. Nc3 {[%clk 0:03:01]}  a6 {[%clk 0:02:59]} 6. Be2 {[%clk 0:03:00]}  e5 {[%clk 0:02:59]} 7. Nb3 {[%clk 0:03:00]}  Be7 {[%clk 0:02:59]} 8. O-O {[%clk 0:03:00]}  Be6 {[%clk 0:03:00]} 9. f4 {[%clk 0:03:00]}  Nbd7 {[%clk 0:03:00]} 10. Kh1 {[%clk 0:02:58]}  Rc8 {[%clk 0:02:59]} 11. a4 {[%clk 0:02:49]}  O-O {[%clk 0:02:56]} 12. a5 {[%clk 0:02:49]}  Rxc3 {[%clk 0:02:53]} 13. bxc3 {[%clk 0:02:48]}  Nxe4 {[%clk 0:02:53]} 14. Qd3 {[%clk 0:02:37]}  f5 {[%clk 0:02:50]} 15. Ba3 {[%clk 0:02:23]}  Qc7 {[%clk 0:02:44]} 16. Bb4 {[%clk 0:02:20]}  Ndc5 {[%clk 0:02:11]} 17. Qe3 {[%clk 0:01:51]}  Nxb3 {[%clk 0:01:56]} 18. cxb3 {[%clk 0:01:52]}  Bxb3 {[%clk 0:01:54]} 19. fxe5 {[%clk 0:01:39]}  dxe5 {[%clk 0:01:51]} 20. Bxe7 {[%clk 0:01:39]}  Qxe7 {[%clk 0:01:51]} 21. Qb6 {[%clk 0:01:38]}  Bd5 {[%clk 0:01:43]} 22. Rad1 {[%clk 0:01:37]}  Bc6 {[%clk 0:01:39]} 23. Qb4 {[%clk 0:01:28]}  Qxb4 {[%clk 0:01:08]} 24. cxb4 {[%clk 0:01:29]}  g6 {[%clk 0:01:07]} 25. Bc4+ {[%clk 0:01:27]}  Kg7 {[%clk 0:01:07]} 26. Bd5 {[%clk 0:01:22]}  Bxd5 {[%clk 0:01:00]} 27. Rxd5 {[%clk 0:01:21]}  Kf6 {[%clk 0:01:00]} 28. Rd7 {[%clk 0:01:15]}  Rf7 {[%clk 0:00:56]} 29. Rxf7+ {[%clk 0:01:09]}  Kxf7 {[%clk 0:00:56]} 30. Rc1 {[%clk 0:01:09]}  Nd6 {[%clk 0:00:35]} 31. Rc7+ {[%clk 0:01:08]}  Ke6 {[%clk 0:00:36]} 32. Rxh7 {[%clk 0:01:07]}  e4 {[%clk 0:00:36]} 33. g3 {[%clk 0:01:04]}  g5 {[%clk 0:00:31]} 34. h4 {[%clk 0:00:52]}  gxh4 {[%clk 0:00:30]} 35. Rxh4 {[%clk 0:00:52]}  Ke5 {[%clk 0:00:29]} 36. Rh6 {[%clk 0:00:46]}  Nb5 {[%clk 0:00:20]} 37. Kg2 {[%clk 0:00:41]}  Kd4 {[%clk 0:00:18]} 38. Rb6 {[%clk 0:00:39]}  Kc4 {[%clk 0:00:16]} 39. Rxb7 {[%clk 0:00:39]}  Kxb4 {[%clk 0:00:17]} 40. Rf7 {[%clk 0:00:39]}  Nd4 {[%clk 0:00:17]} 41. Kf2 {[%clk 0:00:35]}  Kxa5 {[%clk 0:00:15]} 42. Ke3 {[%clk 0:00:35]}  Nc6 {[%clk 0:00:14]} 43. Rxf5+ {[%clk 0:00:34]}  Kb4 {[%clk 0:00:14]} 44. g4 {[%clk 0:00:33]}  a5 {[%clk 0:00:15]} 45. g5 {[%clk 0:00:33]}  a4 {[%clk 0:00:14]} 46. Rf6 {[%clk 0:00:27]}  Ne7 {[%clk 0:00:10]} 47. Re6 {[%clk 0:00:24]}  Nf5+ {[%clk 0:00:09]} 48. Kxe4 {[%clk 0:00:23]}  Nh4 {[%clk 0:00:09]} 49. Rh6 {[%clk 0:00:22]}  Ng2 {[%clk 0:00:06]} 50. g6 {[%clk 0:00:22]}  a3 {[%clk 0:00:05]} 51. g7 {[%clk 0:00:21]}  a2 {[%clk 0:00:01]} 52. Rh1 {[%clk 0:00:21]} 1-0


[Site "https://www.chess.com"]

[Event "Titled Tuesday Blitz August 1 Late 2023"]
[White "Akbas, Umut Ata"]
[Black "De Souza, Cristiano Gomes"]
[WhiteFideId "44572646"]
[BlackFideId "2151758"]
[WhiteElo "2801"]
[BlackElo "2231"]
[Result "1-0"]
[Round "4"]
[TimeControl "180+1"]
[Date "2023.08.01"]
[WhiteClock "0:02:55"]
[BlackClock "0:02:15"]
[Board "98"]

1. g3 {[%clk 0:03:00]}  Nf6 {[%clk 0:02:59]} 2. Bg2 {[%clk 0:03:01]}  g6 {[%clk 0:02:58]} 3. c4 {[%clk 0:03:02]}  Bg7 {[%clk 0:02:58]} 4. Nc3 {[%clk 0:03:03]}  d6 {[%clk 0:02:59]} 5. d4 {[%clk 0:03:04]}  O-O {[%clk 0:02:59]} 6. Nf3 {[%clk 0:03:05]}  Nc6 {[%clk 0:02:59]} 7. O-O {[%clk 0:03:05]}  Be6 {[%clk 0:03:00]} 8. d5 {[%clk 0:03:06]}  Bd7 {[%clk 0:02:56]} 9. dxc6 {[%clk 0:03:06]}  bxc6 {[%clk 0:02:57]} 10. e4 {[%clk 0:03:06]}  Rb8 {[%clk 0:02:55]} 11. e5 {[%clk 0:03:06]}  dxe5 {[%clk 0:02:54]} 12. Nxe5 {[%clk 0:03:06]}  Qc8 {[%clk 0:02:54]} 13. Nxc6 {[%clk 0:03:05]}  Bxc6 {[%clk 0:02:53]} 14. Bxc6 {[%clk 0:03:05]}  Rd8 {[%clk 0:02:50]} 15. Qe2 {[%clk 0:03:06]}  Qh3 {[%clk 0:02:49]} 16. Bg2 {[%clk 0:03:05]}  Qd7 {[%clk 0:02:47]} 17. Nd5 {[%clk 0:03:05]}  Nxd5 {[%clk 0:02:46]} 18. cxd5 {[%clk 0:03:06]}  Bf6 {[%clk 0:02:43]} 19. Re1 {[%clk 0:03:06]}  a5 {[%clk 0:02:40]} 20. h4 {[%clk 0:03:06]}  a4 {[%clk 0:02:40]} 21. Rb1 {[%clk 0:03:06]}  Qd6 {[%clk 0:02:37]} 22. Bg5 {[%clk 0:03:05]}  Kg7 {[%clk 0:02:36]} 23. Bxf6+ {[%clk 0:03:03]}  exf6 {[%clk 0:02:35]} 24. Qe7 {[%clk 0:03:03]}  Qb6 {[%clk 0:02:31]} 25. Rec1 {[%clk 0:03:00]}  Rbc8 {[%clk 0:02:28]} 26. Rc6 {[%clk 0:02:59]}  Qa5 {[%clk 0:02:27]} 27. Qxf6+ {[%clk 0:02:59]}  Kg8 {[%clk 0:02:26]} 28. Rbc1 {[%clk 0:02:58]}  Re8 {[%clk 0:02:25]} 29. d6 {[%clk 0:02:54]}  Re1+ {[%clk 0:02:20]} 30. Rxe1 {[%clk 0:02:54]}  Qxe1+ {[%clk 0:02:15]} 31. Kh2 {[%clk 0:02:55]} 1-0


[Site "https://www.chess.com"]

[Event "Titled Tuesday Blitz August 1 Late 2023"]
[White "Goltsev, Dmitry"]
[Black "Jahnz, Fabian"]
[WhiteFideId "24176710"]
[BlackFideId "4653300"]
[WhiteElo "2650"]
[BlackElo "2402"]
[Result "1-0"]
[Round "4"]
[TimeControl "180+1"]
[Date "2023.08.01"]
[WhiteClock "0:00:26"]
[BlackClock "0:00:07"]
[Board "99"]

1. e4 {[%clk 0:02:57]}  c6 {[%clk 0:03:00]} 2. d4 {[%clk 0:02:57]}  d5 {[%clk 0:03:01]} 3. Nc3 {[%clk 0:02:58]}  dxe4 {[%clk 0:03:01]} 4. Nxe4 {[%clk 0:02:59]}  Nf6 {[%clk 0:03:01]} 5. Ng3 {[%clk 0:02:58]}  Bg4 {[%clk 0:03:01]} 6. Nf3 {[%clk 0:02:58]}  Bxf3 {[%clk 0:02:58]} 7. gxf3 {[%clk 0:02:55]}  e6 {[%clk 0:02:58]} 8. c3 {[%clk 0:02:55]}  Bd6 {[%clk 0:02:58]} 9. Bd3 {[%clk 0:02:55]}  O-O {[%clk 0:02:58]} 10. h4 {[%clk 0:02:55]}  Qc7 {[%clk 0:02:52]} 11. Rg1 {[%clk 0:02:53]}  Nbd7 {[%clk 0:02:45]} 12. Qc2 {[%clk 0:02:42]}  e5 {[%clk 0:02:36]} 13. Nf5 {[%clk 0:02:41]}  g6 {[%clk 0:02:31]} 14. Bh6 {[%clk 0:02:36]}  Rfe8 {[%clk 0:02:27]} 15. O-O-O {[%clk 0:02:37]}  exd4 {[%clk 0:02:26]} 16. cxd4 {[%clk 0:02:37]}  Bf4+ {[%clk 0:02:25]} 17. Kb1 {[%clk 0:02:34]}  Bxh6 {[%clk 0:02:22]} 18. Nxh6+ {[%clk 0:02:35]}  Kg7 {[%clk 0:02:22]} 19. Qd2 {[%clk 0:02:14]}  Nb6 {[%clk 0:01:39]} 20. Nf5+ {[%clk 0:01:54]}  Kh8 {[%clk 0:01:28]} 21. Qh6 {[%clk 0:01:52]}  Rg8 {[%clk 0:01:29]} 22. Rde1 {[%clk 0:01:48]}  Nbd5 {[%clk 0:01:25]} 23. Ng3 {[%clk 0:01:15]}  Qf4 {[%clk 0:01:16]} 24. Qg5 {[%clk 0:01:09]}  Qxf3 {[%clk 0:00:42]} 25. Bc2 {[%clk 0:01:01]}  Qf4 {[%clk 0:00:40]} 26. Qxf4 {[%clk 0:00:59]}  Nxf4 {[%clk 0:00:41]} 27. Re7 {[%clk 0:00:59]}  Rgf8 {[%clk 0:00:25]} 28. Rxb7 {[%clk 0:00:57]}  N6d5 {[%clk 0:00:24]} 29. Ne4 {[%clk 0:00:54]}  Kg7 {[%clk 0:00:22]} 30. Ng5 {[%clk 0:00:51]}  Rab8 {[%clk 0:00:18]} 31. Rxa7 {[%clk 0:00:48]}  Nc3+ {[%clk 0:00:15]} 32. Ka1 {[%clk 0:00:46]}  Nce2 {[%clk 0:00:15]} 33. Rd1 {[%clk 0:00:41]}  Rb4 {[%clk 0:00:14]} 34. Bb3 {[%clk 0:00:35]}  Rxd4 {[%clk 0:00:11]} 35. Rxd4 {[%clk 0:00:34]}  Nxd4 {[%clk 0:00:12]} 36. Bxf7 {[%clk 0:00:34]}  Kh6 {[%clk 0:00:08]} 37. Be6 {[%clk 0:00:26]}  Kh5 {[%clk 0:00:07]} 38. Rxh7# {[%clk 0:00:26]} 1-0


[Site "https://www.chess.com"]

[Event "Titled Tuesday Blitz August 1 Late 2023"]
[White "Goldin, Alexander"]
[Black "Sari, Yasin"]
[WhiteFideId "2019540"]
[BlackFideId "6320902"]
[WhiteElo "2597"]
[BlackElo "2402"]
[Result "1-0"]
[Round "4"]
[TimeControl "180+1"]
[Date "2023.08.01"]
[WhiteClock "0:02:20"]
[BlackClock "0:01:56"]
[Board "100"]

1. d4 {[%clk 0:03:00]}  Nf6 {[%clk 0:02:52]} 2. Nf3 {[%clk 0:02:59]}  g6 {[%clk 0:02:53]} 3. g3 {[%clk 0:02:59]}  Bg7 {[%clk 0:02:53]} 4. Bg2 {[%clk 0:02:59]}  O-O {[%clk 0:02:54]} 5. O-O {[%clk 0:02:59]}  d6 {[%clk 0:02:55]} 6. c4 {[%clk 0:02:59]}  Nc6 {[%clk 0:02:55]} 7. Nc3 {[%clk 0:03:00]}  a6 {[%clk 0:02:56]} 8. h3 {[%clk 0:02:59]}  Rb8 {[%clk 0:02:56]} 9. e4 {[%clk 0:03:00]}  e5 {[%clk 0:02:51]} 10. dxe5 {[%clk 0:02:57]}  Nxe5 {[%clk 0:02:46]} 11. Nxe5 {[%clk 0:02:55]}  dxe5 {[%clk 0:02:47]} 12. Qxd8 {[%clk 0:02:44]}  Rxd8 {[%clk 0:02:45]} 13. Bg5 {[%clk 0:02:44]}  c6 {[%clk 0:02:29]} 14. f4 {[%clk 0:02:23]}  h5 {[%clk 0:01:56]} 15. fxe5 {[%clk 0:02:20]} 1-0


[Site "https://www.chess.com"]